[Event "Early-Titled-Tuesday-Blitz-October-03-2023"]
[Site "Chess.com"]
[Date "2023.10.03"]
[Round "11"]
[White "tolimachess"]
[Black "Kostya0705"]
[Result "0-1"]
[WhiteElo "2452"]
[BlackElo "2612"]
[TimeControl "180+1"]
[EndTime "10:09:17 PDT"]
[Termination "Kostya0705 won by checkmate"]

1. Nc3 {[%clk 0:02:59.6]} 1... d5 {[%clk 0:02:21]} 2. g3 {[%clk 0:02:58.4]} 2...
d4 {[%clk 0:02:19]} 3. Nb1 {[%clk 0:02:58]} 3... e5 {[%clk 0:02:18.8]} 4. Bg2
{[%clk 0:02:58.5]} 4... Nf6 {[%clk 0:02:18.6]} 5. d3 {[%clk 0:02:59.1]} 5... Bd6
{[%clk 0:02:18.1]} 6. e4 {[%clk 0:02:59.1]} 6... O-O {[%clk 0:02:16.8]} 7. Ne2
{[%clk 0:02:57.1]} 7... c5 {[%clk 0:02:15.7]} 8. O-O {[%clk 0:02:57.2]} 8... Nc6
{[%clk 0:02:12.1]} 9. h3 {[%clk 0:02:55.9]} 9... b5 {[%clk 0:02:12.3]} 10. a4
{[%clk 0:02:53.3]} 10... bxa4 {[%clk 0:02:12.2]} 11. Nd2 {[%clk 0:02:51.4]}
11... Nd7 {[%clk 0:02:13.1]} 12. Rxa4 {[%clk 0:02:48.4]} 12... Nb6 {[%clk
0:02:13.1]} 13. Ra1 {[%clk 0:02:48.9]} 13... a5 {[%clk 0:02:12.8]} 14. b3 {[%clk
0:02:48.9]} 14... a4 {[%clk 0:02:12.4]} 15. bxa4 {[%clk 0:02:47.2]} 15... Nxa4
{[%clk 0:02:12.2]} 16. Nb3 {[%clk 0:02:13.3]} 16... Be6 {[%clk 0:02:09.3]} 17.
Bd2 {[%clk 0:02:03]} 17... Qb6 {[%clk 0:02:07.5]} 18. Rb1 {[%clk 0:02:00.6]}
18... Qa7 {[%clk 0:02:03]} 19. f4 {[%clk 0:01:55.6]} 19... f6 {[%clk 0:01:52]}
20. fxe5 {[%clk 0:01:54.1]} 20... fxe5 {[%clk 0:01:51]} 21. Rxf8+ {[%clk
0:01:54.6]} 21... Rxf8 {[%clk 0:01:48.2]} 22. Ra1 {[%clk 0:01:52.9]} 22... c4
{[%clk 0:01:48.7]} 23. Nbc1 {[%clk 0:01:48.4]} 23... c3 {[%clk 0:01:44]} 24. Be1
{[%clk 0:01:48.6]} 24... Qa5 {[%clk 0:01:37.5]} 25. Nb3 {[%clk 0:01:10]} 25...
Qb4 {[%clk 0:01:36]} 26. Nec1 {[%clk 0:01:06.8]} 26... Na7 {[%clk 0:01:20.3]}
27. g4 {[%clk 0:01:03.5]} 27... Nb5 {[%clk 0:01:19.5]} 28. Bg3 {[%clk
0:01:00.6]} 28... Na3 {[%clk 0:01:15.9]} 29. Na2 {[%clk 0:00:51.8]} 29... Qb6
{[%clk 0:01:12.2]} 30. Nac1 {[%clk 0:00:46.2]} 30... h6 {[%clk 0:00:59.5]} 31.
Qe2 {[%clk 0:00:42.4]} 31... Nb2 {[%clk 0:00:53]} 32. Bxe5 {[%clk 0:00:20.2]}
32... Bxe5 {[%clk 0:00:49.5]} 33. Rxa3 {[%clk 0:00:20]} 33... Qd6 {[%clk
0:00:46.2]} 34. Ra5 {[%clk 0:00:19.6]} 34... Bf4 {[%clk 0:00:43.8]} 35. e5
{[%clk 0:00:17.3]} 35... Qb6 {[%clk 0:00:40.6]} 36. Qe4 {[%clk 0:00:16.9]} 36...
Bxc1 {[%clk 0:00:38.9]} 37. Nxc1 {[%clk 0:00:17.8]} 37... Qxa5 {[%clk
0:00:38.1]} 38. Ne2 {[%clk 0:00:18.1]} 38... Qc5 {[%clk 0:00:29.2]} 39. Qxd4
{[%clk 0:00:16.7]} 39... Qxd4+ {[%clk 0:00:26.8]} 40. Nxd4 {[%clk 0:00:17.6]}
40... Ba2 {[%clk 0:00:27]} 41. Nb5 {[%clk 0:00:17.5]} 41... Na4 {[%clk
0:00:24.2]} 42. d4 {[%clk 0:00:17.4]} 42... Bb1 {[%clk 0:00:24.2]} 43. Bd5+
{[%clk 0:00:16.1]} 43... Kh8 {[%clk 0:00:23.7]} 44. Bb3 {[%clk 0:00:16.7]} 44...
Nb6 {[%clk 0:00:21.2]} 45. Nxc3 {[%clk 0:00:16.9]} 45... Rd8 {[%clk 0:00:21.6]}
46. d5 {[%clk 0:00:15.6]} 46... Rc8 {[%clk 0:00:20.3]} 47. Nxb1 {[%clk
0:00:15.7]} 47... Rc5 {[%clk 0:00:18.7]} 48. c4 {[%clk 0:00:09]} 48... Nxc4
{[%clk 0:00:17.6]} 49. Nc3 {[%clk 0:00:06.7]} 49... Ne3 {[%clk 0:00:16.6]} 50.
Ne4 {[%clk 0:00:05.7]} 50... Rb5 {[%clk 0:00:14.1]} 51. Ba4 {[%clk 0:00:02.9]}
51... Rb4 {[%clk 0:00:14]} 52. d6 {[%clk 0:00:02.6]} 52... Rd4 {[%clk
0:00:05.5]} 53. d7 {[%clk 0:00:03]} 53... Nc4 {[%clk 0:00:06]} 54. Bc6 {[%clk
0:00:01.9]} 54... Nb6 {[%clk 0:00:05.7]} 55. Nd6 {[%clk 0:00:02.1]} 55... Nxd7
{[%clk 0:00:04.6]} 56. Bxd7 {[%clk 0:00:03]} 56... Kh7 {[%clk 0:00:04.5]} 57.
Nf7 {[%clk 0:00:03.9]} 57... Rxd7 {[%clk 0:00:04]} 58. e6 {[%clk 0:00:04.8]}
58... Re7 {[%clk 0:00:04.5]} 59. g5 {[%clk 0:00:05.5]} 59... Rxe6 {[%clk
0:00:04.6]} 60. gxh6 {[%clk 0:00:06.1]} 60... g6 {[%clk 0:00:04.8]} 61. Nd8
{[%clk 0:00:06.7]} 61... Re7 {[%clk 0:00:04.2]} 62. Nc6 {[%clk 0:00:07.3]} 62...
Re3 {[%clk 0:00:04.3]} 63. Kg2 {[%clk 0:00:07.2]} 63... Kxh6 {[%clk 0:00:05]}
64. Nd4 {[%clk 0:00:07.4]} 64... Rd3 {[%clk 0:00:05.5]} 65. Nf3 {[%clk
0:00:07.9]} 65... Kh5 {[%clk 0:00:05.6]} 66. Ne5 {[%clk 0:00:08.5]} 66... Rd2+
{[%clk 0:00:05.7]} 67. Kg3 {[%clk 0:00:08.8]} 67... g5 {[%clk 0:00:06.6]} 68.
Ng4 {[%clk 0:00:09.1]} 68... Ra2 {[%clk 0:00:07]} 69. Nf6+ {[%clk 0:00:09]}
69... Kg6 {[%clk 0:00:07]} 70. Ne4 {[%clk 0:00:09.7]} 70... Ra3+ {[%clk
0:00:07.9]} 71. Kg2 {[%clk 0:00:09.8]} 71... Kf5 {[%clk 0:00:08.2]} 72. Ng3+
{[%clk 0:00:10]} 72... Kf4 {[%clk 0:00:08.7]} 73. Ne2+ {[%clk 0:00:10.7]} 73...
Ke3 {[%clk 0:00:09.2]} 74. Ng3 {[%clk 0:00:11.1]} 74... Ra2+ {[%clk 0:00:09.7]}
75. Kg1 {[%clk 0:00:11.7]} 75... Kf3 {[%clk 0:00:10.6]} 76. Nf1 {[%clk
0:00:11.7]} 76... Ra1 {[%clk 0:00:11.1]} 77. h4 {[%clk 0:00:09.8]} 77... gxh4
{[%clk 0:00:10.7]} 78. Kh2 {[%clk 0:00:09.7]} 78... Rxf1 {[%clk 0:00:10.1]} 79.
Kh3 {[%clk 0:00:10.6]} 79... Rh1# {[%clk 0:00:10.8]} 0-1

[Event "Early-Titled-Tuesday-Blitz-October-03-2023"]
[Site "Chess.com"]
[Date "2023.10.03"]
[Round "11"]
[White "jk13"]
[Black "Fantastic_Power"]
[Result "1-0"]
[WhiteElo "2659"]
[BlackElo "2778"]
[TimeControl "180+1"]
[EndTime "10:09:25 PDT"]
[Termination "jk13 won by resignation"]

1. e4 {[%clk 0:03:00.9]} 1... c5 {[%clk 0:02:57.9]} 2. c3 {[%clk 0:03:01.2]}
2... d5 {[%clk 0:02:57.3]} 3. exd5 {[%clk 0:03:01.8]} 3... Nf6 {[%clk 0:02:58]}
4. d4 {[%clk 0:03:02.6]} 4... cxd4 {[%clk 0:02:57.9]} 5. Nf3 {[%clk 0:03:03.5]}
5... Nxd5 {[%clk 0:02:56.8]} 6. Nxd4 {[%clk 0:03:02.9]} 6... e5 {[%clk
0:02:56.1]} 7. Nb5 {[%clk 0:03:01.3]} 7... Be6 {[%clk 0:02:50]} 8. Bc4 {[%clk
0:03:01.5]} 8... Nf4 {[%clk 0:02:44.8]} 9. Qxd8+ {[%clk 0:03:02.4]} 9... Kxd8
{[%clk 0:02:44.6]} 10. Bxe6 {[%clk 0:02:51.1]} 10... Nxe6 {[%clk 0:02:45.5]} 11.
Be3 {[%clk 0:02:44.4]} 11... a6 {[%clk 0:02:42.6]} 12. N5a3 {[%clk 0:02:41.9]}
12... Nd7 {[%clk 0:02:34.3]} 13. Nc4 {[%clk 0:02:40.6]} 13... b5 {[%clk
0:02:33.3]} 14. Na5 {[%clk 0:02:36.2]} 14... Kc7 {[%clk 0:02:32.4]} 15. Nd2
{[%clk 0:02:35.9]} 15... Bc5 {[%clk 0:02:26]} 16. Ke2 {[%clk 0:02:23.6]} 16...
Bxe3 {[%clk 0:02:23.9]} 17. fxe3 {[%clk 0:02:23.5]} 17... f6 {[%clk 0:02:23.5]}
18. Rhd1 {[%clk 0:02:20.6]} 18... Ndc5 {[%clk 0:02:21.2]} 19. b4 {[%clk
0:01:51.4]} 19... Na4 {[%clk 0:02:17.5]} 20. Rac1 {[%clk 0:01:51.3]} 20... Nb2
{[%clk 0:01:49.5]} 21. Rf1 {[%clk 0:01:51.1]} 21... Rac8 {[%clk 0:01:43.6]} 22.
Rc2 {[%clk 0:01:46.8]} 22... Na4 {[%clk 0:01:43.2]} 23. c4 {[%clk 0:01:46.1]}
23... Kb6 {[%clk 0:01:43.7]} 24. Rfc1 {[%clk 0:01:38]} 24... Rhd8 {[%clk
0:01:36.4]} 25. c5+ {[%clk 0:01:25.5]} 25... Nexc5 {[%clk 0:01:32.6]} 26. Nab3
{[%clk 0:01:25.4]} 26... Nxb3 {[%clk 0:01:26.9]} 27. axb3 {[%clk 0:01:25.7]}
27... Rxc2 {[%clk 0:00:38.3]} 28. Rxc2 {[%clk 0:01:26.6]} 28... Rd7 {[%clk
0:00:39]} 29. Nb1 {[%clk 0:01:15.2]} 29... a5 {[%clk 0:00:34.7]} 30. bxa4 {[%clk
0:01:09.3]} 30... axb4 {[%clk 0:00:30.3]} 31. axb5 {[%clk 0:01:04.4]} 31... Kxb5
{[%clk 0:00:31.2]} 32. Rc8 {[%clk 0:01:02.2]} 32... Ka5 {[%clk 0:00:23.9]} 33.
Rb8 {[%clk 0:00:58.3]} 33... Ka4 {[%clk 0:00:18.2]} 34. Nd2 {[%clk 0:00:56.8]}
34... Ka3 {[%clk 0:00:18.8]} 35. g4 {[%clk 0:00:49.8]} 35... Rc7 {[%clk
0:00:18.8]} 36. h4 {[%clk 0:00:46.2]} 36... h6 {[%clk 0:00:16]} 37. h5 {[%clk
0:00:46.1]} 37... Ka4 {[%clk 0:00:13.3]} 38. Ra8+ {[%clk 0:00:44.8]} 38... Kb5
{[%clk 0:00:13.3]} 39. Rb8+ {[%clk 0:00:37]} 39... Ka4 {[%clk 0:00:13.5]} 40.
Kd3 {[%clk 0:00:28.4]} 40... Rd7+ {[%clk 0:00:13]} 41. Kc2 {[%clk 0:00:27.1]}
41... Rc7+ {[%clk 0:00:13.5]} 42. Kb2 {[%clk 0:00:22.3]} 42... Rc3 {[%clk
0:00:13.9]} 43. Ra8+ {[%clk 0:00:19.2]} 43... Kb5 {[%clk 0:00:13.8]} 44. Ra7
{[%clk 0:00:19.9]} 44... Rxe3 {[%clk 0:00:13.1]} 45. Rxg7 {[%clk 0:00:19.6]}
45... Re2 {[%clk 0:00:13.3]} 46. Kc1 {[%clk 0:00:19.5]} 46... Rg2 {[%clk
0:00:10.2]} 47. Rg6 {[%clk 0:00:18.5]} 47... Ka4 {[%clk 0:00:05.9]} 48. Rxf6
{[%clk 0:00:17.6]} 48... Rxg4 {[%clk 0:00:05.7]} 49. Ra6+ {[%clk 0:00:17.3]}
49... Kb5 {[%clk 0:00:05.8]} 50. Rxh6 {[%clk 0:00:18.2]} 50... Rh4 {[%clk
0:00:04.2]} 51. Nf3 {[%clk 0:00:17]} 51... Rh1+ {[%clk 0:00:02.6]} 52. Kd2
{[%clk 0:00:16.5]} 52... e4 {[%clk 0:00:03.1]} 53. Nd4+ {[%clk 0:00:15.5]} 53...
Kc4 {[%clk 0:00:03.3]} 54. Ne2 {[%clk 0:00:14.4]} 54... Rh3 {[%clk 0:00:03]} 55.
Rh8 {[%clk 0:00:13.3]} 55... b3 {[%clk 0:00:03.2]} 56. Rc8+ {[%clk 0:00:12.4]}
56... Kb4 {[%clk 0:00:03.1]} 57. Rb8+ {[%clk 0:00:12.4]} 57... Kc4 {[%clk
0:00:03.3]} 58. Rc8+ {[%clk 0:00:12.5]} 58... Kb4 {[%clk 0:00:03.8]} 59. Re8
{[%clk 0:00:12.4]} 59... Rxh5 {[%clk 0:00:03.5]} 60. Rxe4+ {[%clk 0:00:13.1]}
60... Ka3 {[%clk 0:00:04]} 61. Re8 {[%clk 0:00:11.9]} 61... Rd5+ {[%clk
0:00:03.5]} 62. Kc3 {[%clk 0:00:11.7]} 62... Rc5+ {[%clk 0:00:03.4]} 63. Kd3
{[%clk 0:00:12.2]} 63... Rc7 {[%clk 0:00:03.6]} 64. Ra8+ {[%clk 0:00:11.8]}
64... Kb2 {[%clk 0:00:03.7]} 65. Rb8 {[%clk 0:00:11.7]} 65... Ka2 {[%clk
0:00:03.2]} 66. Nc3+ {[%clk 0:00:11.5]} 66... Kb2 {[%clk 0:00:03.5]} 67. Na4+
{[%clk 0:00:11.8]} 67... Ka3 {[%clk 0:00:03.7]} 68. Nc3 {[%clk 0:00:11.6]} 68...
Kb2 {[%clk 0:00:03.5]} 69. Na4+ {[%clk 0:00:11.2]} 69... Ka3 {[%clk 0:00:03.7]}
70. Nb6 {[%clk 0:00:11.5]} 70... Ka2 {[%clk 0:00:01.4]} 71. Ra8+ {[%clk
0:00:10]} 71... Kb2 {[%clk 0:00:01.4]} 72. Nc4+ {[%clk 0:00:10.7]} 72... Kb1
{[%clk 0:00:02]} 73. Nd2+ {[%clk 0:00:10]} 73... Kb2 {[%clk 0:00:02.1]} 74. Rb8
{[%clk 0:00:10.3]} 74... Rd7+ {[%clk 0:00:02.1]} 75. Ke2 {[%clk 0:00:10.1]}
75... Re7+ {[%clk 0:00:02.6]} 76. Kd1 {[%clk 0:00:10.1]} 76... Re3 {[%clk
0:00:02.2]} 77. Nc4+ {[%clk 0:00:10.5]} 77... Kc3 {[%clk 0:00:02.1]} 78. Nxe3
{[%clk 0:00:11.4]} 78... b2 {[%clk 0:00:02.3]} 79. Nd5+ {[%clk 0:00:11]} 79...
Kc4 {[%clk 0:00:02.4]} 80. Rxb2 {[%clk 0:00:11.4]} 80... Kxd5 {[%clk 0:00:02.8]}
81. Kd2 {[%clk 0:00:11.9]} 1-0

[Event "Early-Titled-Tuesday-Blitz-October-03-2023"]
[Site "Chess.com"]
[Date "2023.10.03"]
[Round "11"]
[White "Journey_to_GrandMaster_YT"]
[Black "Rodalquilar"]
[Result "0-1"]
[WhiteElo "2595"]
[BlackElo "2722"]
[TimeControl "180+1"]
[EndTime "10:09:43 PDT"]
[Termination "Rodalquilar won by resignation"]

1. d4 {[%clk 0:03:00]} 1... d5 {[%clk 0:03:00]} 2. Nf3 {[%clk 0:03:00.1]} 2...
Nf6 {[%clk 0:03:00]} 3. c4 {[%clk 0:03:00.7]} 3... e6 {[%clk 0:02:59.9]} 4. Nc3
{[%clk 0:03:01.3]} 4... a6 {[%clk 0:03:00.1]} 5. cxd5 {[%clk 0:03:00.9]} 5...
exd5 {[%clk 0:03:00.6]} 6. Bg5 {[%clk 0:03:01.5]} 6... Be6 {[%clk 0:03:01.1]} 7.
e3 {[%clk 0:03:02.1]} 7... Nbd7 {[%clk 0:03:01.5]} 8. Bd3 {[%clk 0:03:02.5]}
8... Bd6 {[%clk 0:03:01.6]} 9. O-O {[%clk 0:03:02.9]} 9... c6 {[%clk 0:03:02.1]}
10. Rb1 {[%clk 0:03:00]} 10... Qc7 {[%clk 0:03:02]} 11. h3 {[%clk 0:02:59.1]}
11... h6 {[%clk 0:03:02.4]} 12. Bxf6 {[%clk 0:02:56.6]} 12... Nxf6 {[%clk
0:03:03.3]} 13. b4 {[%clk 0:02:57.2]} 13... O-O {[%clk 0:02:46.5]} 14. a4 {[%clk
0:02:55.2]} 14... Rfe8 {[%clk 0:02:28.4]} 15. Qc2 {[%clk 0:02:48.9]} 15... Rac8
{[%clk 0:02:22.4]} 16. Rfc1 {[%clk 0:02:46.3]} 16... Qe7 {[%clk 0:02:20.6]} 17.
b5 {[%clk 0:02:45.9]} 17... cxb5 {[%clk 0:02:17.3]} 18. axb5 {[%clk 0:02:46]}
18... Ba3 {[%clk 0:02:15.1]} 19. Rd1 {[%clk 0:02:43.5]} 19... Bb4 {[%clk
0:02:14.4]} 20. Rb3 {[%clk 0:02:42.6]} 20... Ne4 {[%clk 0:02:14.8]} 21. Bxe4
{[%clk 0:02:32.3]} 21... dxe4 {[%clk 0:02:14.7]} 22. d5 {[%clk 0:02:20.4]} 22...
exf3 {[%clk 0:02:13.1]} 23. dxe6 {[%clk 0:02:15.6]} 23... fxe6 {[%clk
0:01:34.9]} 24. Rd4 {[%clk 0:01:44.6]} 24... a5 {[%clk 0:00:56.2]} 25. Qd3
{[%clk 0:01:44]} 25... Qg5 {[%clk 0:00:37.1]} 26. Rg4 {[%clk 0:01:35.7]} 26...
Qe5 {[%clk 0:00:37.3]} 27. Nd1 {[%clk 0:01:06]} 27... Red8 {[%clk 0:00:33.4]}
28. Qb1 {[%clk 0:01:02.9]} 28... Qc7 {[%clk 0:00:21.3]} 29. Rd3 {[%clk
0:00:53.9]} 29... Rxd3 {[%clk 0:00:12]} 30. Qxd3 {[%clk 0:00:54.8]} 30... Rd8
{[%clk 0:00:10.2]} 31. Qb1 {[%clk 0:00:40.3]} 31... e5 {[%clk 0:00:06.3]} 32.
gxf3 {[%clk 0:00:35.5]} 32... Qd7 {[%clk 0:00:06.8]} 33. Nb2 {[%clk 0:00:34.4]}
33... h5 {[%clk 0:00:05.8]} 34. Rg5 {[%clk 0:00:31.3]} 34... Qe7 {[%clk
0:00:03.9]} 35. Qg6 {[%clk 0:00:28.1]} 35... Rd6 {[%clk 0:00:03.3]} 36. Qxh5
{[%clk 0:00:26.5]} 36... Bc3 {[%clk 0:00:03.4]} 37. Nc4 {[%clk 0:00:26.2]} 37...
Re6 {[%clk 0:00:03.2]} 38. Qg4 {[%clk 0:00:23.9]} 38... a4 {[%clk 0:00:03.2]}
39. Kh1 {[%clk 0:00:09.7]} 39... e4 {[%clk 0:00:03.6]} 40. fxe4 {[%clk
0:00:07.3]} 40... Rxe4 {[%clk 0:00:03.8]} 41. Qc8+ {[%clk 0:00:07.1]} 41... Qe8
{[%clk 0:00:04.3]} 42. Qxe8+ {[%clk 0:00:06.3]} 42... Rxe8 {[%clk 0:00:03.5]}
43. Rc5 {[%clk 0:00:06.2]} 43... Ra8 {[%clk 0:00:03.6]} 44. Rc7 {[%clk
0:00:05.8]} 44... a3 {[%clk 0:00:03.1]} 45. Nxa3 {[%clk 0:00:06.2]} 45... Rxa3
{[%clk 0:00:03.7]} 46. Rxb7 {[%clk 0:00:06.5]} 46... Ra2 {[%clk 0:00:04.3]} 47.
Kg2 {[%clk 0:00:06.6]} 47... Be1 {[%clk 0:00:04.9]} 48. Kf3 {[%clk 0:00:06.6]}
48... Rxf2+ {[%clk 0:00:05]} 49. Ke4 {[%clk 0:00:07]} 49... Rb2 {[%clk
0:00:05.9]} 50. Rb8+ {[%clk 0:00:06.2]} 50... Kh7 {[%clk 0:00:05.8]} 51. b6
{[%clk 0:00:07.1]} 51... Bf2 {[%clk 0:00:06.4]} 52. Kf3 {[%clk 0:00:06]} 52...
Bg1 {[%clk 0:00:06.8]} 53. b7 {[%clk 0:00:05.6]} 53... Bh2 {[%clk 0:00:07.1]}
54. Rc8 {[%clk 0:00:04.8]} 54... Rxb7 {[%clk 0:00:07.4]} 55. Rc4 {[%clk
0:00:04.4]} 55... Rf7+ {[%clk 0:00:07.7]} 56. Kg4 {[%clk 0:00:04.4]} 56... Bd6
{[%clk 0:00:08.3]} 57. Rc6 {[%clk 0:00:04.5]} 57... Rf6 {[%clk 0:00:08.6]} 58.
Ra6 {[%clk 0:00:03.8]} 58... Kg6 {[%clk 0:00:08.8]} 59. Ra5 {[%clk 0:00:03.5]}
59... Re6 {[%clk 0:00:08.2]} 60. Rg5+ {[%clk 0:00:03.7]} 60... Kf6 {[%clk
0:00:07.8]} 61. Rf5+ {[%clk 0:00:04.2]} 61... Ke7 {[%clk 0:00:08.3]} 62. Kf3
{[%clk 0:00:04.4]} 62... Rf6 {[%clk 0:00:08.8]} 63. e4 {[%clk 0:00:03.4]} 63...
Rxf5+ {[%clk 0:00:08.7]} 64. exf5 {[%clk 0:00:04.3]} 64... Kf6 {[%clk
0:00:09.3]} 65. Kg4 {[%clk 0:00:03.9]} 65... Be5 {[%clk 0:00:09.9]} 66. h4
{[%clk 0:00:03.1]} 66... Bd4 {[%clk 0:00:09.1]} 67. Kh5 {[%clk 0:00:03.3]} 67...
Be3 {[%clk 0:00:09.7]} 68. Kg4 {[%clk 0:00:03.6]} 68... Bf2 {[%clk 0:00:10.2]}
69. Kh5 {[%clk 0:00:03.6]} 69... Bb6 {[%clk 0:00:08.2]} 70. Kg4 {[%clk 0:00:04]}
70... Bd8 {[%clk 0:00:08.1]} 71. Kh5 {[%clk 0:00:04.2]} 71... Be7 {[%clk
0:00:05.1]} 72. Kg4 {[%clk 0:00:04.6]} 72... Bb4 {[%clk 0:00:05.7]} 73. h5
{[%clk 0:00:04.2]} 73... Bd2 {[%clk 0:00:05.8]} 74. Kh4 {[%clk 0:00:03.9]} 74...
Kxf5 {[%clk 0:00:06]} 75. Kh3 {[%clk 0:00:04.1]} 75... Kg5 {[%clk 0:00:06.3]}
76. Kg3 {[%clk 0:00:04.3]} 76... Kxh5 {[%clk 0:00:06.7]} 77. Kf3 {[%clk
0:00:05.2]} 77... g5 {[%clk 0:00:07]} 78. Kg3 {[%clk 0:00:06.1]} 78... g4 {[%clk
0:00:07]} 79. Kg2 {[%clk 0:00:07]} 79... Kh4 {[%clk 0:00:07.3]} 80. Kf2 {[%clk
0:00:07.9]} 80... g3+ {[%clk 0:00:07.7]} 81. Kg2 {[%clk 0:00:08.8]} 81... Kg4
{[%clk 0:00:08.3]} 82. Kg1 {[%clk 0:00:09.7]} 82... Kh3 {[%clk 0:00:08.3]} 83.
Kf1 {[%clk 0:00:10.6]} 83... g2+ {[%clk 0:00:08.5]} 84. Ke2 {[%clk 0:00:10.5]}
84... g1=Q {[%clk 0:00:08.3]} 85. Kxd2 {[%clk 0:00:10.3]} 85... Qd4+ {[%clk
0:00:08.4]} 86. Ke2 {[%clk 0:00:10.2]} 86... Kg3 {[%clk 0:00:08.8]} 0-1